Cogmind - Beta 13 --- EXPLORER MODE // 2024.03.31 @ 10:32:57 Player: 0-1 Result: Destroyed by C-40 Crusher with Compactor Performance ------------- Evolutions (3) 1500 Regions Visited (7) 1400 Robots Destroyed (130) 650 Value Destroyed (4847) 4847 Prototype IDs (6) 120 Alien Tech Used (0) 0 Bonus (895) 895 TOTAL SCORE: 9412 Bonus ------- High Alert Combat Kills 94 Follower Combat Kills 101 Entered Garrisons 200 Used RIF Installer 500 Cogmind --------- Core Integrity 0/700 Matter 38/300 Energy 100/100 System Corruption 9% Temperature Cool (0) Movement Core (50) Location -7/Waste Parts ------- > --- POWER (2) -------- (None) > --- PROPULSION (4) --- (None) > --- UTILITY (4) ------ (None) > --- WEAPON (4) ------- (None) > --- INVENTORY (5) ---- Kinecellerator Compact Ion Cannon Gauss Rifle Rocket Launcher Heavy Hammer Peak State ------------ > --- POWER ------------ Light Deuterium Engine Micro Nuclear Core > --- PROPULSION ------- Medium Treads Medium Treads Medium Treads Medium Treads > --- UTILITY ---------- Huge Storage Unit Kinecellerator Weapon Cycler Hacking Suite > --- WEAPON ----------- Heavy Assault Rifle Heavy Assault Rifle Heavy Assault Rifle Flak Gun > --- INVENTORY -------- Improved Deuterium Engine Light Treads Light Treads Medium Treads Kinecellerator Improved Medium Armor Plating Compact Ion Cannon Rocket Launcher Scatter Rocket Array Heavy Hammer [Rating: 48] Favorites ----------- Power Light Nuclear Core Engine Ion Engine Power Core Light Nuclear Core Propulsion Light Treads Treads Light Treads Flight Unit VTOL Module Utility Hacking Suite Device Kinecellerator Storage Huge Storage Unit Hackware Hacking Suite Protection Medium Armor Plating Weapon Heavy Assault Rifle Energy Cannon Compact Ion Cannon Ballistic Gun Heavy Assault Rifle Launcher Rocket Launcher Impact Weapon Heavy Hammer Build | -11 -10 -9 -9 -8 -8 -7 -7 ------- Run | Yrd Mat Mat Sto Mat Gar Fac Was Slots Evolved 7 | . 1 2 . 2 . 2 . Power 1 | . . . . 1 . . . Propulsion 2 | . 1 1 . . . . . Utility 2 | . . 1 . 1 . . . Weapon 2 | . . . . . . 2 . Parts Attached 122 | 7 16 17 28 4 36 14 . Power 20 | 1 . 6 1 1 7 4 . Engine 11 | 1 . 4 . . 4 2 . Core 9 | . . 2 1 1 3 2 . Reactor . | . . . . . . . . Propulsion 36 | 2 6 3 12 1 7 5 . Treads 35 | 2 6 3 11 1 7 5 . Leg . | . . . . . . . . Wheel . | . . . . . . . . Hover . | . . . . . . . . Flight 1 | . . . 1 . . . . Utility 17 | 2 3 3 2 1 5 1 . Device 5 | . . . . 1 3 1 . Storage 6 | 1 3 2 . . . . . Processor . | . . . . . . . . Hackware 2 | . . . 2 . . . . Protection 4 | 1 . 1 . . 2 . . Artifact . | . . . . . . . . Weapon 49 | 2 7 5 13 1 17 4 . Energy Gun . | . . . . . . . . Energy Cannon 1 | . . . 1 . . . . Ballistic Gun 33 | 2 7 3 8 1 8 4 . Ballistic Cannon . | . . . . . . . . Launcher 8 | . . 1 2 . 5 . . Special Weapon . | . . . . . . . . Impact Weapon 7 | . . 1 2 . 4 . . Slashing Weapon . | . . . . . . . . Piercing Weapon . | . . . . . . . . Special Melee Weapon . | . . . . . . . . Unidentified Prototypes 2 | . . . 2 . . . . Parts Lost 22 | . . 3 2 1 8 1 7 Power 7 | . . 1 1 . 3 . 2 Propulsion 7 | . . 2 1 . 4 . . Utility 4 | . . . . 1 1 . 2 Weapon 4 | . . . . . . 1 3 Highest Loss Streak 7 | . . 1 1 1 4 1 7 To Critical Strikes 1 | . . . . . . . 1 Average Slot Usage (%) 93 | . 97 95 98 86 84 97 67 Engine 4 | . 12 2 . . 7 10 4 Core 6 | . . 5 9 11 7 4 4 Treads 34 | . 35 39 38 33 26 27 18 Device 2 | . . . . 5 7 14 9 Storage 14 | . 24 20 10 8 8 7 5 Hackware 7 | . . . 18 10 8 7 5 Protection 2 | . . 7 . . 1 . . Ballistic Gun 18 | . 24 19 18 16 12 23 18 Naked Turns 33 | . . . . . . . 33 Heaviest Build 138 | 20 51 138 138 99 106 112 109 Greatest Support 112 | 40 69 92 86 83 83 112 112 Greatest Overweight (x) 30 | . 2 2 30 1 5 1 . Average Overweight (x) . | . . . 1 1 1 . . Largest Inventory Capacity 25 | 10 15 25 25 25 25 25 25 Average Capacity 22 | 7 13 20 25 25 25 25 19 Most Carried 18 | 2 15 17 18 13 12 15 11 Average Carried 10 | . 8 13 12 11 8 7 9 Final Capacity 25 | 10 15 25 25 25 25 25 5 Final Carried 17 | . 13 17 12 12 8 11 5 Class Distribution -------------------- 89% | Hacker-Mutant 5% | Hacker-Gunner Dominant Class ---------------- Hacker-Mutant | -10/Materials Hacker-Mutant | -9/Materials Hacker-Mutant | -9/Storage Hacker-Mutant | -8/Materials Hacker-Mutant | -8/Garrison Hacker-Gunner | -7/Factory Hacker-Gunner | -7/Waste Resources | -11 -10 -9 -9 -8 -8 -7 -7 ----------- Run | Yrd Mat Mat Sto Mat Gar Fac Was Matter Collected 3371 | 205 462 665 727 353 717 242 . Remotely . | . . . . . . . . Salvage Created 5727 | . 633 1341 1347 868 757 230 551 Parts 346 | . 45 115 89 37 41 16 3 Haulers Intercepted . | . . . . . . . . Recyclers Shooed 2 | . 1 . . 1 . . . Parts Field Recycled . | . . . . . . . . Retrieved Matter . | . . . . . . . . Parts Self-Destructed . | . . . . . . . . Prevented . | . . . . . . . . Kills | -11 -10 -9 -9 -8 -8 -7 -7 ------- Run | Yrd Mat Mat Sto Mat Gar Fac Was Combat Hostiles Destroyed 106 | . 10 33 24 14 19 4 2 Guns 99 | . 10 32 24 14 13 4 2 AOE 7 | . . 1 . . 6 . . Classes Destroyed 15 | . 7 1 2 2 1 1 1 Worker 2 | . 1 1 . . . . . Builder 3 | . 2 . . 1 . . . Tunneler 1 | . 1 . . . . . . Recycler 5 | . 1 . 2 2 . . . Operator 1 | . . . 1 . . . . Watcher 12 | . 3 5 2 1 . 1 . Swarmer 18 | . 2 9 2 2 3 . . Grunt 49 | . 8 14 9 5 11 2 . Brawler 1 | . . . . 1 . . . Duelist 3 | . . . 1 2 . . . Sentry 29 | . . 10 12 3 4 . . Hunter 1 | . . . . 1 . . . Programmer 2 | . . . . . . 2 . Behemoth 1 | . . . . . 1 . . Compactor 2 | . . . . . . . 2 Best Kill Streak 7 | . 3 7 3 5 6 2 1 Combat Bots Only 7 | . 3 7 3 4 6 2 1 Max Kills in Single Turn 3 | . 1 2 2 1 3 1 1 Gunslinging 1 | . . 1 1 . . . . Exploded 3 | . . 1 . . 3 . . Melee . | . . . . . . . . Uniques/NPCs Destroyed . | . . . . . . . . Combat | -11 -10 -9 -9 -8 -8 -7 -7 -------- Run | Yrd Mat Mat Sto Mat Gar Fac Was Hostile Shots Fired 709 | . 70 194 136 99 172 11 27 Missed 187 | . 22 51 40 32 40 1 1 Damage Taken 5129 | . 377 1147 776 620 1322 113 774 Core 1189 | . 100 115 87 79 103 13 692 Absorbed by Shields . | . . . . . . . . Ignored by Resistances 3122 | . 239 723 491 379 792 67 431 Regen/Repaired (Parts) 288 | . 64 37 187 . . . . Core Remaining (%) 68 | 100 60 . 49 . 66 . . Volleys Fired 338 | . 41 90 79 54 51 10 13 Largest 4 | . 2 2 2 2 2 4 4 Hottest 97 | . 46 46 90 46 73 92 97 Shots Fired 688 | . 80 169 151 108 102 36 42 Gun 670 | . 80 168 144 108 92 36 42 Cannon 5 | . . . 5 . . . . Launcher 13 | . . 1 2 . 10 . . Special . | . . . . . . . . Kinetic 670 | . 80 168 144 108 92 36 42 Thermal 5 | . . . 5 . . . . Explosive 13 | . . 1 2 . 10 . . Electromagnetic . | . . . . . . . . Robot Hit Streak 99 | . 36 25 51 18 28 14 99 Robot Miss Streak 3 | . 1 3 2 1 2 2 . Penetration Max . | . . . . . . . . Secondary Targets 20 | . . 9 2 3 6 . . Max Gunslinging Chain 1 | . . 1 1 1 1 . . Shots Hit Robots 577 | . 67 144 122 93 87 22 42 Core Hits 246 | . 25 59 45 43 48 10 16 Critical Kills . | . . . . . . . . Critical Parts Destroyed 3 | . . . 2 1 . . . Critical Strikes 3 | . . . 2 1 . . . Destroy 3 | . . . 2 1 . . . Melee Attacks 16 | . . 1 3 . 12 . . Impact 16 | . . 1 3 . 12 . . Slashing . | . . . . . . . . Piercing . | . . . . . . . . Sneak Attacks . | . . . . . . . . Combat Hostiles . | . . . . . . . . Follow-up Attacks . | . . . . . . . . Damage Inflicted 9603 | . 909 2300 1827 1362 1908 442 855 Guns 8665 | . 909 2134 1825 1362 1138 442 855 Cannons . | . . . . . . . . Explosions 916 | . . 146 . . 770 . . Melee . | . . . . . . . . Ramming 22 | . . 20 2 . . . . Kinetic 8665 | . 909 2134 1825 1362 1138 442 855 Thermal . | . . . . . . . . Explosive 916 | . . 146 . . 770 . . Electromagnetic . | . . . . . . . . Impact . | . . . . . . . . Slashing . | . . . . . . . . Piercing . | . . . . . . . . Highest Corruption 9 | . . . . . . . 9 Average Corruption 6 | . . . . . . . 6 Corruption Purged . | . . . . . . . . Corruption Blocked . | . . . . . . . . Effects 5 | . . . . . . . 5 Message Errors 1 | . . . . . . . 1 Matter Fused 1 | . . . . . . . 1 Heat Flow Errors 1 | . . . . . . . 1 Data Loss (minor) 1 | . . . . . . . 1 Alerts 1 | . . . . . . . 1 Overload Shots . | . . . . . . . . Overflow Damage 4 | . . . . . 4 . . Projectiles . | . . . . . . . . Explosions 4 | . . . . . 4 . . Melee . | . . . . . . . . Knockbacks . | . . . . . . . . Impact . | . . . . . . . . Kinetic . | . . . . . . . . Secondary . | . . . . . . . . Self-Inflicted Damage 16 | . . . 1 . 15 . . Shots 2 | . . . 1 . 1 . . Rammed 4 | . 1 3 . . . . . Targets Rammed 5 | . 1 3 1 . . . . Kicked . | . . . . . . . . Crushed 1 | . . . 1 . . . . Highest Temperature 316 | . 10 66 202 56 119 81 316 Average Temperature 45 | . 4 20 51 22 47 24 134 Received Heat Transfer 2466 | . 267 651 432 333 756 27 . Siege Activations . | . . . . . . . . Robots Corrupted . | . . . . . . . . Combat Hostiles . | . . . . . . . . Parts Fried . | . . . . . . . . Impact Corruptions . | . . . . . . . . Robots Melted . | . . . . . . . . Combat Hostiles . | . . . . . . . . Parts Melted . | . . . . . . . . Heat Transferred . | . . . . . . . . Parts Sabotaged . | . . . . . . . . Parts Stolen . | . . . . . . . . Parts Stripped . | . . . . . . . . Power Chain Reactions . | . . . . . . . . Alert | -11 -10 -9 -9 -8 -8 -7 -7 ------- Run | Yrd Mat Mat Sto Mat Gar Fac Was Peak Influence 879 | . 167 378 283 394 879 449 57 Initial 342 | . . 13 13 12 71 342 42 Average 172 | . 47 118 59 160 489 304 26 Maximum Alert Level 3 | . . 1 1 1 3 2 . Low Security (%) 72 | 100 100 75 97 61 21 37 100 Level 1 14 | . . 24 2 38 17 37 . Level 2 6 | . . . . . 24 25 . Level 3 6 | . . . . . 35 . . Level 4 . | . . . . . . . . Level 5 . | . . . . . . . . High Security . | . . . . . . . . Max Security . | . . . . . . . . Squads Dispatched 17 | . 2 5 4 4 . 2 . Investigation 8 | . 2 3 2 . . 1 . Extermination 1 | . . . . . . 1 . Reinforcement 5 | . . 2 2 1 . . . Assault . | . . . . . . . . Garrison 3 | . . . . 3 . . . Intercept . | . . . . . . . . Searches Triggered . | . . . . . . . . Construction Impeded . | . . . . . . . . Haulers Reinforced . | . . . . . . . . Active Scanning Responses . | . . . . . . . . Cargo Convoy Interrupts . | . . . . . . . . Stealth | -11 -10 -9 -9 -8 -8 -7 -7 --------- Run | Yrd Mat Mat Sto Mat Gar Fac Was Distress Signals 5 | . 1 1 1 2 . . . Communications Jammed . | . . . . . . . . Distress Signals . | . . . . . . . . Times Spotted 141 | . 15 42 29 24 22 5 4 Peak Tracking Total 6 | . 3 5 3 6 6 2 3 Tactical Retreats 2 | . 1 . 1 . . . . Traps | -11 -10 -9 -9 -8 -8 -7 -7 ------- Run | Yrd Mat Mat Sto Mat Gar Fac Was Traps Triggered 11 | . 2 2 3 . 3 1 . Indirectly . | . . . . . . . . Trap Hack Attempts . | . . . . . . . . Triggered . | . . . . . . . . Disarmed 3 | . . 3 . . . . . Reprogrammed . | . . . . . . . . Reused . | . . . . . . . . Traps Extracted . | . . . . . . . . Installed . | . . . . . . . . Triggered . | . . . . . . . . Machines | -11 -10 -9 -9 -8 -8 -7 -7 ---------- Run | Yrd Mat Mat Sto Mat Gar Fac Was Machines Disabled 5 | . . . 2 . 3 . . Max in Single Turn 1 | . . . 1 . 1 . . Garrison Relay 3 | . . . . . 3 . . Machines Repaired . | . . . . . . . . Machines Dismantled . | . . . . . . . . Machines Sabotaged . | . . . . . . . . Overloaded Fab Kills . | . . . . . . . . Hacking | -11 -10 -9 -9 -8 -8 -7 -7 --------- Run | Yrd Mat Mat Sto Mat Gar Fac Was Machines Accessed 37 | . 7 10 12 2 4 2 . Terminals 28 | . 6 8 9 . 4 1 . Fabricators . | . . . . . . . . Repair Stations 4 | . 1 1 2 . . . . Recycling Units 1 | . . . 1 . . . . Scanalyzers 3 | . . 1 . 1 . 1 . Garrison Access 1 | . . . . 1 . . . Total Hacks 110 | . 32 34 28 3 4 9 . Successful 73 | . 17 19 23 3 4 7 . Failed 37 | . 15 15 5 . . 2 . Catastrophic 2 | . 1 1 . . . . . Database Lockouts . | . . . . . . . . Manual 8 | . 2 6 . . . . . Terminals 84 | . 27 29 23 . 4 1 . Fabricators . | . . . . . . . . Repair Stations 11 | . 5 2 4 . . . . Recycling Units 1 | . . . 1 . . . . Scanalyzers 13 | . . 3 . 2 . 8 . Garrison Access 1 | . . . . 1 . . . Terminal Hacks 49 | . 12 14 18 . 4 1 . Record 16 | . 9 4 3 . . . . Part Schematic 4 | . . . 4 . . . . Robot Schematic 1 | . . . 1 . . . . Robot Analysis 1 | . . 1 . . . . . Prototype ID Bank 2 | . . 2 . . . . . Open Door 5 | . . . 4 . 1 . . Open DSF 1 | . . . . . . 1 . Branch Access Points 1 | . . 1 . . . . . Emergency Access Points 3 | . . 2 . . 1 . . Unreport Threat 5 | . 1 . 4 . . . . Disarm Traps 1 | . . 1 . . . . . Assault Status 1 | . . 1 . . . . . Hauler Manifests 4 | . 1 1 2 . . . . Registered Prototypes 1 | . . 1 . . . . . Zone Layout 1 | . 1 . . . . . . Garrison Registry 1 | . . . . . 1 . . Security Stations 1 | . . . . . 1 . . Fabricator Hacks . | . . . . . . . . Repair Station Hacks 11 | . 5 2 4 . . . . Scan Component 6 | . 3 1 2 . . . . Repair 5 | . 2 1 2 . . . . Recycling Unit Hacks 1 | . . . 1 . . . . Report Inventory 1 | . . . 1 . . . . Scanalyzer 11 | . . 3 . 2 . 6 . Insert Component 5 | . . 1 . 1 . 3 . Analyze 6 | . . 2 . 1 . 3 . Garrison Access Hacks 1 | . . . . 1 . . . Unlock Access 1 | . . . . 1 . . . Unauthorized Hacks . | . . . . . . . . Terminals . | . . . . . . . . Fabricators . | . . . . . . . . Repair Stations . | . . . . . . . . Recycling Units . | . . . . . . . . Scanalyzers . | . . . . . . . . Garrison Access . | . . . . . . . . Data Cores Recovered . | . . . . . . . . Used . | . . . . . . . . Hacking Detections 27 | . 6 8 9 2 1 1 . Full Trace Events 12 | . 6 3 2 . . 1 . Feedback Events . | . . . . . . . . Feedback Blocked . | . . . . . . . . Robot Schematics Acquired 1 | . . . 1 . . . . Robots Built . | . . . . . . . . Authchips . | . . . . . . . . Time . | . . . . . . . . Total Robot Build Rating . | . . . . . . . . Part Schematics Acquired 9 | . . 1 4 1 . 3 . Parts Built . | . . . . . . . . Authchips . | . . . . . . . . Time . | . . . . . . . . Total Part Build Rating . | . . . . . . . . Parts Repaired 5 | . 2 1 2 . . . . Time 120 | . 52 26 42 . . . . Parts Recycled . | . . . . . . . . Recycled Matter . | . . . . . . . . Retrieved Matter . | . . . . . . . . Retrieved Components . | . . . . . . . . Parts Scanalyzed 5 | . . 1 . 1 . 3 . Part Schematics Acquired 5 | . . 1 . 1 . 3 . Parts Damaged . | . . . . . . . . Bothacking | -11 -10 -9 -9 -8 -8 -7 -7 ------------ Run | Yrd Mat Mat Sto Mat Gar Fac Was Used RIF Installer 1 | . . . . . 1 . . Robots Hacked . | . . . . . . . . Non-combat . | . . . . . . . . Combat . | . . . . . . . . Robot Hacks Applied . | . . . . . . . . Relay Couplers Released 12 | . . . . . 9 3 . Machine Destruction 9 | . . . . . 9 . . Programmers 3 | . . . . . . 3 . Fabnet Peak Effective % . | . . . . . . . . Robots Rewired . | . . . . . . . . Allies Hacked . | . . . . . . . . Hacks Repelled . | . . . . . . . . Allies | -11 -10 -9 -9 -8 -8 -7 -7 -------- Run | Yrd Mat Mat Sto Mat Gar Fac Was Total Allies 3 | . . . . . 2 . 1 Largest Group 2 | . . . . . 2 . 1 Highest-Rated Group 70 | . . . . . 70 . 31 Highest-Rated Ally 39 | . . . . . 39 . 31 Total Orders . | . . . . . . . . Ally Attacks 22 | . . . . . 17 . 5 Total Damage 379 | . . . . . 315 . 64 Kills 3 | . . . . . 3 . . Allies Corrupted . | . . . . . . . . Allies Melted . | . . . . . . . . Intel | -11 -10 -9 -9 -8 -8 -7 -7 ------- Run | Yrd Mat Mat Sto Mat Gar Fac Was Robot Analysis Total 1 | . . 1 . . . . . Derelict Logs Recovered . | . . . . . . . . Drone Launches . | . . . . . . . . Drone Recoveries . | . . . . . . . . Exploration | -11 -10 -9 -9 -8 -8 -7 -7 ------------- Run | Yrd Mat Mat Sto Mat Gar Fac Was Turns Passed 9873 | 118 1575 2336 2703 515 1863 636 127 Spaces Moved 3855 | 66 828 963 949 143 604 268 34 Core 12 | 8 . . 4 . . . . Treads 3843 | 58 828 963 945 143 604 268 34 Legs . | . . . . . . . . Wheels . | . . . . . . . . Hover . | . . . . . . . . Flight . | . . . . . . . . Fastest Speed 50 | 50 160 160 240 240 240 160 160 Average Speed 214 | 146 161 204 246 240 262 210 160 Slowest Speed 1550 | 160 320 320 1550 240 560 240 160 Overloaded Moves . | . . . . . . . . Propulsion Burnouts . | . . . . . . . . Robots Hopped . | . . . . . . . . Cave-ins Triggered . | . . . . . . . . Exploration Rate (%) 48 | 4 94 88 91 18 53 8 34 Regions Visited 7 Branch Regions 1 Pre-discovered Areas . | . . . . . . . . Known Exits Taken 5 | 1 1 1 1 1 . . . Unknown Exits Taken . | . . . . . . . . Scrap Searched . | . . . . . . . . Spaces Dug 5 | . . 1 . . 4 . . Terrain Destroyed 152 | . . 11 10 . 131 . . Melee 5 | . . 1 . . 4 . . Projectile . | . . . . . . . . AOE 147 | . . 10 10 . 127 . . Terrain Rammed . | . . . . . . . . Walls Destroyed . | . . . . . . . . Machines Disabled . | . . . . . . . . Actions | -11 -10 -9 -9 -8 -8 -7 -7 --------- Run | Yrd Mat Mat Sto Mat Gar Fac Was Total 4757 | 87 985 1164 1158 209 753 318 83 Wait 250 | 8 68 50 61 4 22 1 36 Move 3848 | 65 827 962 948 142 602 268 34 Hop . | . . . . . . . . Pick Up 109 | 7 25 25 18 3 15 16 . Fast Attach 1 | . 1 . . . . . . Attach 55 | 7 3 6 15 4 13 7 . Detach 5 | . . . 3 1 1 . . Swap 66 | . 12 11 13 . 23 7 . Drop 58 | . 7 16 15 1 10 9 . Fire 338 | . 41 90 79 54 51 10 13 Melee 16 | . . 1 3 . 12 . . Ram . | . . . . . . . . Kick . | . . . . . . . . Crush 5 | . 1 3 1 . . . . Escape Stasis 6 | . . . 2 . 4 . . Rewire . | . . . . . . . . Trap . | . . . . . . . . Miscellaneous . | . . . . . . . . Route ------- -11/Scrapyard -10/Materials (discovered 5 exits: *Mat x3 / *Min x2) -9/Materials (discovered 6 exits: *Mat x2 / *Min x2 / *Sto x2) -9/Storage -8/Materials (discovered 2 exits: *Fac / Gar) -8/Garrison (discovered 3 exits: *Fac x3) -7/Factory -7/Waste History --------- Turn | Location | Event 22 | -11/Scrapyard | Identified exit to Materials 22 | -11/Scrapyard | Discovered exit to Materials (range 15) 119 | -11/Scrapyard | Entered Materials 119 | -10/Materials | Evolved 1 slot: Propulsion x1 300 | -10/Materials | Build established: Hacker-Mutant 442 | -10/Materials | Identified exit to Materials 442 | -10/Materials | Discovered exit to Materials (range 7) 703 | -10/Materials | Discovered exit to Materials (range 14) 832 | -10/Materials | Identified exit to Mines 832 | -10/Materials | Discovered exit to Mines (range 15) 974 | -10/Materials | Discovered exit to Materials (range 16) 1105 | -10/Materials | Repaired Assault Rifle 1137 | -10/Materials | Repaired Assault Rifle 1431 | -10/Materials | Discovered exit to Mines (range 13) 1694 | -10/Materials | Entered another Materials area 1694 | -9/Materials | Evolved 2 slots: Propulsion x1, Utility x1 1694 | -9/Materials | Identified exit to Mines 1694 | -9/Materials | Discovered exit to Mines (range 7) 1881 | -9/Materials | Repaired Ion Engine 1992 | -9/Materials | Destroyed 7 combat bots 2239 | -9/Materials | Identified exit to Materials 2239 | -9/Materials | Discovered exit to Materials (range 7) 2548 | -9/Materials | Identified exit to Storage 2548 | -9/Materials | Discovered exit to Storage (range 8) 2754 | -9/Materials | Discovered exit to Mines (range 12) 2930 | -9/Materials | Discovered exit to Storage (range 14) 3687 | -9/Materials | Discovered exit to Materials (range 16) 4030 | -9/Materials | Entered Storage 4945 | -9/Storage | Repaired Imp. Treads 5578 | -9/Storage | Repaired Lgt. Treads 5790 | -9/Storage | Found Prototype Launcher 5791 | -9/Storage | Identified Scatter Rocket Array 6102 | -9/Storage | Discovered exit to Materials (range 9) 6245 | -9/Storage | Core integrity fell below 50% 6733 | -9/Storage | Entered Materials 6733 | -8/Materials | Evolved 2 slots: Power x1, Utility x1 6886 | -8/Materials | Garrison activated, responded to threat 7206 | -8/Materials | Identified exit to Factory 7206 | -8/Materials | Discovered exit to Factory (range 15) 7246 | -8/Materials | Identified exit to Garrison 7248 | -8/Materials | Entered Garrison 7317 | -8/Garrison | Learned Factory security intel 7332 | -8/Garrison | Triggered checkpoint 7373 | -8/Garrison | Garrison Relay disabled 7401 | -8/Garrison | Rescued a captive Derelict 7401 | -8/Garrison | Rescued a captive Derelict 7568 | -8/Garrison | Installed Relay Interface Framework 7610 | -8/Garrison | Discovered exit to Factory (range 49) 7610 | -8/Garrison | Discovered exit to Factory (range 63) 7610 | -8/Garrison | Discovered exit to Factory (range 45) 7636 | -8/Garrison | Triggered checkpoint 7662 | -8/Garrison | Triggered checkpoint 7662 | -8/Garrison | Triggered checkpoint 8124 | -8/Garrison | Spotted B-75 Beast 8180 | -8/Garrison | Destroyed B-75 Beast 8202 | -8/Garrison | Lost 4 parts (3n1u) 8935 | -8/Garrison | Garrison Relay disabled 9111 | -8/Garrison | Entered Factory 9111 | -7/Factory | Evolved 2 slots: Weapon x2 9463 | -7/Factory | Identified exit to Factory 9463 | -7/Factory | Discovered exit to Factory (range 15) 9747 | -7/Factory | Sucked down chute 9747 | -7/Factory | Entered Waste 9748 | -7/Waste | Met a frightened Derelict 9762 | -7/Waste | EMP discharged 9773 | -7/Waste | Spotted C-40 Crusher 9778 | -7/Waste | Spotted C-40 Crusher 9808 | -7/Waste | Destroyed C-40 Crusher 9813 | -7/Waste | Spotted C-40 Crusher 9822 | -7/Waste | Crushed by Compactor (1 part destroyed, 1 dropped) 9824 | -7/Waste | Spotted C-40 Crusher 9825 | -7/Waste | Crushed by Compactor (1 part destroyed, 1 dropped) 9828 | -7/Waste | Crushed by Compactor (1 part destroyed, 1 dropped) 9831 | -7/Waste | Destroyed C-40 Crusher 9835 | -7/Waste | Crushed by Compactor (1 part destroyed, 1 dropped) 9838 | -7/Waste | Crushed by Compactor (1 part destroyed, 1 dropped) 9841 | -7/Waste | Crushed by Compactor (1 part destroyed, 2 dropped) 9857 | -7/Waste | Core integrity fell below 50% 9862 | -7/Waste | EMP discharged 9869 | -7/Waste | Core integrity fell below 20% 9872 | -7/Waste | Lost 7 parts (2p2u3w) 9874 | -7/Waste | Destroyed by C-40 Crusher with Compactor Last Messages --------------- Critical hit (Destroy). Hvy. Assault Rifle destroyed. Med. Treads crushed. Huge Storage Unit crushed. Weapon Cycler crushed. Hacking Suite crushed. Lgt. Treads crushed. Imp. Medium Armor Plating crushed. Weapon Cycler crushed. System corrupted: IFF burst signal emitted. Lgt. Treads crushed. Med. Treads crushed. Imp. Deuterium Engine crushed. ALERT: Foreign system detected. Charging EMP. Med. Treads fried beyond repair. Graphene Brace fried beyond repair. System corrupted (+3). ,UNIKY&CEKQH2 D U8&M9KGIGV>, [Achievement: First Step to Greatness] [Achievement: 5k Club] Map ----- +----------------------------------------------------+ | ?????????????????????????????????????????????????? | | ?????????????????????????????????????????????????? | | ?????????????????????????????????????????????????? | | ?????????????????????????????????????????????????? | | ?????????????????????????????????????????????????? | | ?????????????????????????????????????????????????? | | ?????????????????????????????????????????????????? | | ?????????????????????????????????????????????????? | | ?????????????????????????????????????????????????? | | ?????????????????????????????????????????????????? | | ?????????????????????????????????????????????????? | | ?????????????????????????????????????????????????? | | ?????????????????????????????????????????????????? | | ?????????????????????????????????????????????????? | | ?????????????????????????????????????????????????? | | ?????????????????????????????????????????????????? | | ?????????????????????????????????????????????????? | | ?????????????????????????????????????????????????? | | ?????????????????????????????????????????????????? | | ?????????????????????????????????????????????????? | | ?????????????????????????????????????????????????? | | ?????????????????????????????????????????????????? | | ???????????????????????######????????????????????? | | ???????????????????????# #????????????????????? | | ???????????????????????#]=CC#????????????????????? | | ???????????????????????# @CC#????????????????????? | | ???????????????????????#=CC #????????????????????? | | ?????????????????????### CC #????????????????????? | | ?????????????????????# ! #????????????????????? | | ?????????????????????# #????????????????????? | | ?????????????????????# #????????????????????? | | ?????????????????????# #????????????????????? | | ?????????????????????### #????????????????????? | | ???????????????????????# #????????????????????? | | ???????????????????????# #????????????????????? | | ???????????????????????# #????????? ??????????? | | ?????????????????????### ######## #????????? | | ?????????????????????# % ????????? | | ?????????????????????# ????????? | | ?????????????????????# ????????? | | ?????????????????????# ????????? | | ?????????????????????### !=######## #????????? | | ?????????############??# [#????????? ??????????? | | ?????????# #??# #????????????????????? | | ?????????# #??# #????????????????????? | | ?????????# #### ######## #????????? | | ?????????# #????????? | | ?????????# ]#????????? | | ?????????# #????????? | | ?????????# #????????? | +----------------------------------------------------+ Best States ------------- Heat Dissipation 34 Energy Generation 27 Energy Capacity 340 Matter Stores 300 Matter Capacity 300 Sight Range 16 Terrain Scan Density 10 Armor Coverage 225 Resistance: KI 35 Resistance: TH 35 Resistance: EX 35 Resistance: EM 35 Resistance: I 35 Resistance: S 35 Resistance: P 35 Power Shielding 33 Weapon Cycling 15 Evasion (%) 50 Recoil Reduction 4 Kinecelleration 30 Offensive Hacking 40 Item Schematics ----------------- Hvy. Assault Rifle | -9/Materials | Scanalyzed Field Recycling Unit | -9/Storage | Hacked Recoil Stabilizer | -9/Storage | Hacked Lgt. Deuterium Engine | -9/Storage | Hacked Salvage Targeting Computer | -9/Storage | Hacked Imp. Treads | -8/Materials | Scanalyzed VTOL Module | -7/Factory | Scanalyzed Imp. Medium Armor Plating | -7/Factory | Scanalyzed Com. Ion Cannon | -7/Factory | Scanalyzed Robot Schematics ------------------ T-07 Excavator | -9/Storage | Hacked Fabricated ------------ Nothing Alien Tech Used ----------------- None Achievements -------------- 5k Club First Step to Greatness Gun Specialist Shopping List Challenges ------------ None Game ------ Seed ArcFissionSteel Manual? 0 Play Time 01:21:51 Cumulative 1.3 hours Start 2024.03.31 @ 09:09:06 End 2024.03.31 @ 10:32:57 Sessions 1 Manual Loads 0 Difficulty Explorer Special Mode None Game No. 3 Rogue 0 Adventurer 0 Explorer 3 Win Type - Total 0 Types 0/0/0/0/0/0/0/0/0 Lore% 2 Gallery% 6 Achievement% 8 Wizard Run 0 Options --------- Layout 1 ASCII 0 Keyboard 0 Movement Numpad Keybinds 0 Fullscreen 1 Font 24/Smallcaps Map View 50x35 Zoom Use 0% Tactical HUD 0 Map Filters NONE Filters NONE Steam 1 RUN: a38ad40a-84f4-44c9-88d3-afb94059aadf